Cogmind - Beta 10.2 *** ADVENTURER MODE // 2021.09.20 @ 21:40:54 Player: WingedOwl Result: Destroyed by YI-UF0 with YI-UF0's Doublenader Performance ------------- Evolutions (0) 0 Regions Visited (2) 400 Robots Destroyed (14) 70 Value Destroyed (306) 306 Prototype IDs (0) 0 Alien Tech Used (0) 0 Bonus (0) 0 TOTAL SCORE: 776 Bonus ------- None Cogmind --------- Core Integrity 0/250 Matter 194/300 Energy 123/125 System Corruption 0% Temperature Cool (0) Movement Treading (180) Ox1 Location -10/Mines Parts ------- > --- POWER (1) -------- Light Ion Engine > --- PROPULSION (2) --- Light Treads > --- UTILITY (2) ------ Heat Sink High-capacity Storage Unit > --- WEAPON (2) ------- Assault Rifle Assault Rifle > --- INVENTORY (12) --- Small Storage Unit Small Storage Unit Assault Rifle Peak State ------------ > --- POWER ------------ Light Ion Engine > --- PROPULSION ------- Light Treads Light Treads > --- UTILITY ---------- Small Storage Unit Small Storage Unit > --- WEAPON ----------- Medium Laser Medium Laser > --- INVENTORY -------- Light Ion Engine Assault Rifle [Rating: 7] Favorites ----------- Power Light Ion Engine Engine Light Ion Engine Propulsion Light Treads Treads Light Treads Utility Small Storage Unit Device Heat Sink Storage Small Storage Unit Weapon Medium Laser Energy Gun Medium Laser Ballistic Gun Assault Rifle Launcher Grenade Launcher Build | -11 -10 -10 ------- Run | Scr Mat Min Slots Evolved . | . . . Power . | . . . Propulsion . | . . . Utility . | . . . Weapon . | . . . Parts Attached 20 | 7 8 5 Power 2 | 1 . 1 Engine 2 | 1 . 1 Core . | . . . Reactor . | . . . Propulsion 6 | 2 3 1 Treads 6 | 2 3 1 Leg . | . . . Wheel . | . . . Hover . | . . . Flight . | . . . Utility 4 | 2 2 . Device 1 | . 1 . Storage 3 | 2 1 . Processor . | . . . Hackware . | . . . Protection . | . . . Artifact . | . . . Weapon 8 | 2 3 3 Energy Gun 4 | 2 2 . Energy Cannon . | . . . Ballistic Gun 3 | . 1 2 Ballistic Cannon . | . . . Launcher 1 | . . 1 Special Weapon . | . . . Impact Weapon . | . . . Slashing Weapon . | . . . Piercing Weapon . | . . . Special Melee Weapon . | . . . Unidentified Prototypes . | . . . Parts Lost 7 | . 1 6 Power 1 | . . 1 Propulsion 2 | . . 2 Utility . | . . . Weapon 4 | . 1 3 Highest Loss Streak 6 | . 1 6 Average Slot Usage (%) 95 | . 98 86 Engine 13 | . 14 10 Treads 25 | . 26 19 Device 9 | . 7 14 Storage 18 | . 20 14 Energy Gun 18 | . 21 9 Ballistic Gun 8 | . 5 15 Naked Turns . | . . . Heaviest Build 40 | 15 40 40 Greatest Support 40 | 40 40 40 Greatest Overweight (x) 12 | 3 4 12 Average Overweight (x) . | . . . Largest Inventory Capacity 14 | 8 14 12 Average Capacity 10 | 6 10 12 Most Carried 8 | 2 7 8 Average Carried 4 | 1 4 7 Final Capacity 12 | 8 12 12 Final Carried 7 | 2 7 3 Class Distribution -------------------- 100% | Mutant Dominant Class ---------------- Mutant | -10/Materials Mutant | -10/Mines Resources | -11 -10 -10 ----------- Run | Scr Mat Min Matter Collected 367 | 270 96 1 Remotely . | . . . Salvage Created 394 | 105 288 1 Parts 33 | 6 27 . Haulers Intercepted 1 | . 1 . Recyclers Shooed . | . . . Parts Field Recycled . | . . . Retrieved Matter . | . . . Parts Self-Destructed . | . . . Prevented . | . . . Kills | -11 -10 -10 ------- Run | Scr Mat Min Combat Hostiles Destroyed 11 | . 9 2 Guns 10 | . 9 1 AOE 1 | . . 1 Classes Destroyed 8 | 2 4 2 Tunneler 1 | 1 . . Hauler 1 | . 1 . Recycler 1 | 1 . . Watcher 1 | . 1 . Swarmer 6 | . 6 . Grunt 3 | . 3 . Demolisher 1 | . . 1 Assembled 1 | . . 1 Best Kill Streak 3 | 2 3 2 Combat Bots Only 3 | . 3 2 Max Kills in Single Turn 2 | 1 2 1 Gunslinging 1 | . 1 . Exploded 1 | . . 1 Melee . | . . . Uniques/NPCs Destroyed . | . . . Combat | -11 -10 -10 -------- Run | Scr Mat Min Damage Taken 941 | . 256 685 Core 257 | . 58 199 Absorbed by Shields . | . . . Core Remaining (%) 100 | 100 . . Volleys Fired 44 | 5 25 14 Largest 2 | 2 2 2 Hottest 100 | 100 100 70 Shots Fired 82 | 10 49 23 Gun 79 | 10 49 20 Cannon . | . . . Launcher 3 | . . 3 Special . | . . . Kinetic 26 | . 9 17 Thermal 53 | 10 40 3 Explosive 3 | . . 3 Electromagnetic . | . . . Robot Hit Streak 22 | 9 22 15 Robot Miss Streak 1 | . 1 1 Penetration Max . | . . . Secondary Targets 2 | . 2 . Max Gunslinging Chain 1 | . 1 . Shots Hit Robots 67 | 9 37 21 Core Hits 24 | 3 14 7 Critical Hits . | . . . Critical Kills . | . . . Critical Parts Destroyed . | . . . Melee Attacks . | . . . Impact . | . . . Slashing . | . . . Piercing . | . . . Sneak Attacks . | . . . Combat Hostiles . | . . . Follow-up Attacks . | . . . Damage Inflicted 805 | 126 410 269 Guns 764 | 126 410 228 Cannons . | . . . Explosions 41 | . . 41 Melee . | . . . Ramming . | . . . Kinetic 252 | . 61 191 Thermal 512 | 126 349 37 Explosive 41 | . . 41 Electromagnetic . | . . . Impact . | . . . Slashing . | . . . Piercing . | . . . Highest Corruption . | . . . Average Corruption . | . . . Corruption Purged . | . . . Overload Shots . | . . . Overflow Damage . | . . . Projectiles . | . . . Explosions . | . . . Melee . | . . . Knockbacks . | . . . Impact . | . . . Kinetic . | . . . Secondary . | . . . Self-Inflicted Damage 12 | . . 12 Shots 2 | . . 2 Rammed . | . . . Targets Rammed . | . . . Kicked . | . . . Crushed . | . . . Highest Temperature 156 | 117 156 . Average Temperature 53 | 52 54 . Received Heat Transfer 60 | . 60 . Siege Activations . | . . . Robots Corrupted . | . . . Combat Hostiles . | . . . Parts Fried . | . . . Impact Corruptions . | . . . Robots Melted . | . . . Combat Hostiles . | . . . Parts Melted . | . . . Heat Transferred 1517 | 370 1036 111 Parts Sabotaged . | . . . Parts Stolen . | . . . Parts Stripped . | . . . Power Chain Reactions . | . . . Missiles Intercepted . | . . . Alert | -11 -10 -10 ------- Run | Scr Mat Min Peak Influence 314 | 10 314 37 Initial 37 | . 5 37 Average 129 | 3 185 25 Maximum Alert Level 1 | . 1 . Low Security (%) 62 | 100 43 100 Level 1 37 | . 56 . Level 2 . | . . . Level 3 . | . . . Level 4 . | . . . Level 5 . | . . . High Security . | . . . Max Security . | . . . Squads Dispatched 1 | . 1 . Investigation 1 | . 1 . Extermination . | . . . Reinforcement . | . . . Assault . | . . . Garrison . | . . . Intercept . | . . . Construction Impeded . | . . . Haulers Reinforced . | . . . Stealth | -11 -10 -10 --------- Run | Scr Mat Min Distress Signals . | . . . Communications Jammed . | . . . Distress Signals . | . . . Times Spotted 16 | . 11 5 Peak Tracking Total 6 | . 4 6 Tactical Retreats . | . . . Traps | -11 -10 -10 ------- Run | Scr Mat Min Traps Triggered 2 | . 2 . Indirectly . | . . . Trap Hack Attempts . | . . . Triggered . | . . . Disarmed . | . . . Reprogrammed . | . . . Reused . | . . . Traps Extracted . | . . . Installed . | . . . Triggered . | . . . Machines | -11 -10 -10 ---------- Run | Scr Mat Min Machines Disabled . | . . . Max in Single Turn . | . . . Machines Sabotaged 1 | . 1 . Garrisons Compromised . | . . . Overloaded Fab Kills . | . . . Fab Network Shutdowns . | . . . Hacking | -11 -10 -10 --------- Run | Scr Mat Min Machines Accessed 1 | . 1 . Terminals 1 | . 1 . Fabricators . | . . . Repair Stations . | . . . Recycling Units . | . . . Scanalyzers . | . . . Garrison Access . | . . . Total Hacks 7 | . 7 . Successful 4 | . 4 . Failed 3 | . 3 . Catastrophic . | . . . Database Lockouts . | . . . Manual 6 | . 6 . Terminals 7 | . 7 . Fabricators . | . . . Repair Stations . | . . . Recycling Units . | . . . Scanalyzers . | . . . Garrison Access . | . . . Terminal Hacks . | . . . Fabricator Hacks . | . . . Repair Station Hacks . | . . . Recycling Unit Hacks . | . . . Scanalyzer . | . . . Garrison Access Hacks . | . . . Unauthorized Hacks 4 | . 4 . Terminals 4 | . 4 . Track 1 | . 1 . Botnet 1 | . 1 . Operators 1 | . 1 . Sabotage 1 | . 1 . Fabricators . | . . . Repair Stations . | . . . Recycling Units . | . . . Scanalyzers . | . . . Garrison Access . | . . . Data Cores Recovered . | . . . Used . | . . . Hacking Detections . | . . . Full Trace Events . | . . . Feedback Events . | . . . Feedback Blocked . | . . . Robot Schematics Acquired . | . . . Robots Built . | . . . Matter . | . . . Time . | . . . Total Robot Build Rating . | . . . Part Schematics Acquired . | . . . Parts Built . | . . . Matter . | . . . Time . | . . . Total Part Build Rating . | . . . Parts Repaired . | . . . Time . | . . . Parts Recycled . | . . . Recycled Matter . | . . . Retrieved Matter . | . . . Retrieved Components . | . . . Parts Scanalyzed . | . . . Part Schematics Acquired . | . . . Parts Damaged . | . . . Bothacking | -11 -10 -10 ------------ Run | Scr Mat Min Used RIF Installer . | . . . Robots Hacked . | . . . Non-combat . | . . . Combat . | . . . Robot Hacks Applied . | . . . Relay Couplers Released . | . . . Robots Rewired . | . . . Allies Hacked . | . . . Hacks Repelled . | . . . Allies | -11 -10 -10 -------- Run | Scr Mat Min Total Allies . | . . . Largest Group . | . . . Highest-Rated Group . | . . . Highest-Rated Ally . | . . . Total Orders . | . . . Ally Attacks . | . . . Total Damage . | . . . Kills . | . . . Allies Corrupted . | . . . Allies Melted . | . . . Intel | -11 -10 -10 ------- Run | Scr Mat Min Robot Analysis Total . | . . . Derelict Logs Recovered . | . . . Drone Launches . | . . . Drone Recoveries . | . . . Exploration | -11 -10 -10 ------------- Run | Scr Mat Min Turns Passed 604 | 81 404 119 Spaces Moved 268 | 36 191 41 Core 15 | 13 1 1 Treads 253 | 23 190 40 Legs . | . . . Wheels . | . . . Hover . | . . . Flight . | . . . Fastest Speed 50 | 50 160 160 Average Speed 161 | 150 160 172 Slowest Speed 650 | 200 250 650 Overloaded Moves . | . . . Propulsion Burnouts . | . . . Robots Hopped . | . . . Cave-ins Triggered . | . . . Exploration Rate (%) 15 | 3 28 14 Regions Visited 2 Branch Regions 1 Pre-discovered Areas . | . . . Known Exits Taken . | . . . Unknown Exits Taken 2 | 1 1 . Scrap Searched . | . . . Spaces Dug . | . . . Terrain Destroyed 11 | . . 11 Melee . | . . . Projectile . | . . . AOE 11 | . . 11 Terrain Rammed . | . . . Walls Destroyed . | . . . Machines Disabled . | . . . Actions | -11 -10 -10 --------- Run | Scr Mat Min Total 352 | 49 237 66 Wait 12 | . 7 5 Move 266 | 35 190 41 Hop . | . . . Pick Up 9 | 2 6 1 Fast Attach 12 | 7 5 . Attach 6 | . 1 5 Detach . | . . . Swap 2 | . 2 . Drop 1 | . 1 . Fire 44 | 5 25 14 Melee . | . . . Ram . | . . . Kick . | . . . Crush . | . . . Escape Stasis . | . . . Rewire . | . . . Trap . | . . . Miscellaneous . | . . . Route ------- -11/Scrapyard -10/Materials -10/Mines History --------- Turn | Location | Event 27 | -11/Scrapyard | Discovered new exit (range 15) 82 | -11/Scrapyard | Entered Materials 304 | -10/Materials | Build established: Mutant 477 | -10/Materials | Discovered new exit (range 6) 486 | -10/Materials | Entered Mines 488 | -10/Mines | YI-UF0 nonchalantly dropped a Grenade Launcher on the ground 538 | -10/Mines | Assembled infested the area 543 | -10/Mines | Assisted by a Guerilla fighting off Assembled 568 | -10/Mines | Core integrity fell below 50% 595 | -10/Mines | Core integrity fell below 20% 605 | -10/Mines | Destroyed by YI-UF0 with YI-UF0's Doublenader Last Messages --------------- 00580_ The unstable cave ceiling collapses. 00581_ Grenade Launcher destroyed. 00583_ The unstable cave ceiling collapses. 00585_ U-05 Engineer lays Concrete. 00586_ The unstable cave ceiling collapses. 00586_ U-05 Engineer lays Concrete. 00588_ The unstable cave ceiling collapses. 00588_ U-05 Engineer lays Concrete. 00590_ U-05 Engineer builds a Wall. 00591_ The unstable cave ceiling collapses. 00592_ YI-UF0: "WHOMP!" 00592_ D-53 Grenadier destroyed. 00593_ The unstable cave ceiling collapses. 00594_ YI-UF0 mumbles something. 00594_ The unstable cave ceiling collapses. 00594_ U-05 Engineer builds a Wall. 00595_ The unstable cave ceiling collapses. 00599_ U-05 Engineer builds a Wall. 00602_ The unstable cave ceiling collapses. 00603_ U-05 Engineer builds a Wall. Map ----- +----------------------------------------------------+ | ?????????????????????????????????????????????? | | ?????????????????????????????????????????????? | | ?????????????????????????????????????????????? | | ?????????????????????????????????????????????? | | ?????????????????????????????????????????????? | | ?????????????????????????????????????????????? | | ?????????????????????????????????????????????? | | ?????????????????????????????????????????????? | | ?????????????????????????????????????????????? | | ?????????????????????????????????????????????? | | ????????????????????? ???????????????????????? | | ????????????????????? ???????????????????????? | | ?????????????? ####?a??##???????????????????? | | ????????????# # # ?# ###?????????????????? | | ????????????# # ??????????????????? | | ????????????# $ %!??????????????????? | | ???????????## # ???????????????????? | | ???????##### ???????????????????? | | ??????? ## ????????????????????? | | ???????? g ???#????????????????? | | ????????"" # ### #????????????????? | | ????????"" # ##???????????????? | | ?????????" # ##??????????????? | | ????????????# #??????????????? | | ?????????????# #??????????????? | | ???????????????# @ # #??????????????? | | ?????????####??# ##??????????????? | | ????????## ##### u###??????????????? | | ???????## ## % #??????????????? | | ??????## ## #??????????????? | | ???#### #? #??????????????? | | ???# #### ###??#??????????????? | | ??# ##?## ####???????????????????? | | ??# ## ##?## #??????????????????????? | | ??## #?####?## ##??????????????????????? | | ???###???????# #####???????????????????????? | | ?????????????#####???????????????????????????? | | ?????????????????????????????????????????????? | | ?????????????????????????????????????????????? | | ?????????????????????????????????????????????? | | ?????????????????????????????????????????????? | | ?????????????????????????????????????????????? | | ?????????????????????????????????????????????? | | ?????????????????????????????????????????????? | | ?????????????????????????????????????????????? | | ?????????????????????????????????????????????? | | ?????????????????????????????????????????????? | | ?????????????????????????????????????????????? | | ?????????????????????????????????????????????? | | | +----------------------------------------------------+ Best States ------------- Heat Dissipation 35 Energy Generation 10 Energy Capacity 125 Matter Stores 300 Matter Capacity 300 Sight Range 16 Terrain Scan Density 10 Resistance: KI 20 Resistance: TH 20 Resistance: EX 20 Resistance: EM 20 Resistance: I 20 Resistance: S 20 Resistance: P 20 Evasion (%) 40 Recoil Reduction 2 Offensive Hacking 10 Item Schematics ----------------- None Robot Schematics ------------------ None Fabricated ------------ Nothing Alien Tech Used ----------------- None Achievements -------------- None Challenges ------------ None Game ------ Seed VisualMyomerManipulator Manual? 0 Play Time 00:09:54 Cumulative 142.0 hours Start 2021.09.20 @ 21:32:29 End 2021.09.20 @ 21:40:54 Sessions 1 Manual Loads 0 Difficulty Adventurer Special Mode None Game No. 176 Rogue 152 Adventurer 24 Explorer 0 Win Type - Total 0 Types 0/0/0/0/0/0/0/0/0 Lore% 57 Gallery% 66 Achievement% 44 Wizard Run 0 Options --------- ASCII 0 Keyboard 1 Movement Arrows Keybinds 0 Fullscreen 1 Font 24/Smallcaps Map View 76x50 Tactical HUD 1 Map Filters NONE Filters NONE Steam 1 RUN: a6b818bd-dc36-4dae-a2df-411bc9a7e89b